bitfinex-derivatives/quotes_SOLF0:USTF0_20240913
["timestamp","ask_amount","ask_price","bid_price","bid_amount"]
[1726212234442,11.48,134.25,134.23,3.3525]
[1726212234840,3.3519,134.26,134.23,3.3525]
[1726212235345,11.48,134.25,134.23,3.3525]
[1726212242245,11.48,134.25,134.22,3.3528]
[1726212246345,11.48,134.25,134.23,3.3525]
[1726212248045,2.7255,134.32,134.24,3.3522]
[1726212248248,11.48,134.27,134.23,11.48]
[1726212249043,11.48,134.27,134.25,3.352]
[1726212249239,11.48,134.28,134.23,11.48]
[1726212249437,11.48,134.28,134.25,3.3519]
[1726212249438,14.8313,134.28,134.25,3.3519]
[1726212252554,11.48,134.27,134.25,3.3519]
[1726212257354,11.48,134.27,134.24,3.3522]
[1726212257355,14.8316,134.27,134.24,3.3522]
[1726212257557,11.48,134.26,134.24,3.3522]
[1726212257851,11.48,134.26,134.22,1.3636]
[1726212258050,14.8319,134.26,134.23,3.3524]
[1726212259454,14.8321,134.25,134.23,3.3524]
[1726212259859,11.48,134.24,134.21,1.4338]
[1726212260072,11.48,134.23,134.21,1.4338]
[1726212261661,11.48,134.23,134.21,4.7866]
[1726212266562,11.48,134.22,134.2,3.3533]
[1726212270262,11.48,134.21,134.19,3.3535]
[1726212271169,14.8331,134.21,134.19,3.3535]
[1726212271364,14.8331,134.21,134.17,2.822]
[1726212271667,11.48,134.18,134.17,1.4305]
[1726212271871,11.48,134.18,134.15,0.22225295]
[1726212272111,1.4093,134.24,134.16,3.3542]
[1726212272112,11.48,134.17,134.16,3.3542]
[1726212272293,11.48,134.17,134.15,0.22225295]
[1726212272477,11.48,134.17,134.16,3.3543]
[1726212277266,11.48,134.17,134.15,3.57675295]
[1726212279588,11.48,134.17,134.16,3.3543]
[1726212285288,1.4093,134.24,134.17,3.354]
[1726212285591,11.48,134.19,134.17,3.354]
[1726212288987,11.48,134.18,134.16,3.3542]
[1726212292892,11.48,134.18,134.17,3.3541]
[1726212294785,11.48,134.18,134.16,3.3542]
[1726212300592,14.8341,134.17,134.15,0.22225295]
[1726212300798,11.48,134.16,134.15,0.22225295]
[1726212301195,14.8343,134.16,134.15,0.22225295]
[1726212301894,11.48,134.16,134.15,0.22225295]
[1726212302695,11.48,134.16,134.15,3.57685295]
[1726212302896,11.48,134.17,134.15,3.57685295]
[1726212303198,3.3537,134.19,134.16,3.3543]
[1726212303402,11.48,134.18,134.15,0.22225295]
[1726212304503,11.48,134.18,134.16,3.3542]
[1726212305299,3.3537,134.19,134.16,3.3542]
[1726212305300,11.48,134.17,134.16,3.3542]
[1726212307201,3.3537,134.19,134.16,3.3542]
[1726212307399,11.48,134.17,134.16,3.3542]
[1726212311298,11.48,134.17,134.15,3.57675295]
[1726212313703,3.3539,134.18,134.15,3.57675295]
[1726212314007,11.48,134.17,134.15,3.57675295]
[1726212315309,3.3539,134.18,134.15,3.57675295]
[1726212315609,1.3009,134.21,134.15,3.57675295]
[1726212315610,11.48,134.16,134.15,0.22225295]
[1726212316009,14.8343,134.16,134.15,0.22225295]
[1726212322903,3.3543,134.16,134.15,0.22225295]
[1726212323110,14.8343,134.16,134.15,0.22225295]
[1726212326507,3.3543,134.16,134.15,0.22225295]
[1726212326721,14.8343,134.16,134.15,0.22225295]
[1726212331523,3.3546,134.15,134.14,0.38474403]
[1726212331822,14.8346,134.15,134.14,0.38474403]
[1726212335716,14.8346,134.15,134.13,0.24143934]
[1726212335920,11.48,134.14,134.13,0.24143934]
[1726212336323,11.48,134.14,134.11,0.27276136]
[1726212336523,3.73023568,134.17,134.11,0.27276136]
[1726212336524,11.48,134.12,134.11,0.27276136]
[1726212336829,14.8353,134.12,134.11,0.27276136]
[1726212348131,11.48,134.12,134.09,0.3603194]
[1726212348328,11.48,134.1,134.09,0.3603194]
[1726212348626,14.8358,134.1,134.09,0.3603194]
[1726212354334,3.3561,134.09,134.08,0.32168378]
[1726212354531,11.48,134.09,134.07,0.75858022]
[1726212354730,11.48,134.08,134.07,0.75858022]
[1726212355338,14.8363,134.08,134.07,0.75858022]
[1726212355539,11.48,134.08,134.07,0.75858022]
[1726212357033,2.6172,134.16,134.07,0.75858022]
[1726212357235,11.48,134.09,134.07,0.75858022]
[1726212357442,11.48,134.09,134.07,4.11508022]
[1726212358838,11.48,134.08,134.07,4.11508022]
[1726212359040,11.48,134.08,134.07,0.75858022]
[1726212360342,3.3557,134.11,134.07,4.11498022]
[1726212360548,11.48,134.08,134.07,4.11498022]
[1726212361348,6.3196296,134.16,134.07,0.75858022]
[1726212361547,11.48,134.11,134.07,12.23858022]
[1726212361747,11.48,134.11,134.08,1.3107]
[1726212361951,11.48,134.12,134.08,1.3107]
[1726212362253,11.48,134.12,134.09,1.424]
[1726212363051,11.48,134.12,134.11,3.3553]
[1726212368982,2.7985,134.24,134.1,11.48]
[1726212369257,2.7985,134.24,134.11,15.27055717]
[1726212369258,11.48,134.15,134.11,15.27055717]
[1726212369460,11.48,134.15,134.14,3.3547]
[1726212369962,3.3542,134.17,134.14,3.3547]
[1726212369963,11.48,134.16,134.14,3.3547]
[1726212370255,16.10872348,134.23,134.15,3.3546]
[1726212370446,11.48,134.18,134.13,12.9056]
[1726212370649,11.48,134.18,134.14,1.3786]
[1726212370958,11.48,134.18,134.16,3.3542]
[1726212372957,11.48,134.18,134.15,3.3545]
[1726212373154,11.48,134.16,134.15,3.3545]
[1726212374762,11.48,134.16,134.14,4.7334]
[1726212375660,11.48,134.16,134.15,3.3546]
[1726212376560,11.48,134.16,134.14,4.7333]
[1726212376756,16.11111297,134.23,134.14,3.3547]
[1726212376757,11.48,134.15,134.14,3.3547]
[1726212383761,11.48,134.16,134.15,3.3546]
[1726212383965,11.48,134.18,134.13,2.7361]
[1726212384556,11.48,134.18,134.16,3.3542]
[1726212385860,11.48,134.18,134.17,3.3541]
[1726212386055,3.3531,134.21,134.16,11.48]
[1726212386257,14.8331,134.21,134.16,11.48]
[1726212387172,11.48,134.2,134.16,11.48]
[1726212388762,11.48,134.2,134.18,3.3536]
[1726212391873,14.8333,134.2,134.18,3.3536]
[1726212393169,11.48,134.19,134.17,3.354]
[1726212394869,11.48,134.18,134.16,3.3543]
[1726212399976,11.48,134.18,134.17,3.3541]
[1726212407184,11.48,134.18,134.16,3.3542]
[1726212407485,14.8339,134.18,134.14,11.48]
[1726212407872,14.8339,134.18,134.15,3.3544]
[1726212411483,14.8339,134.18,134.14,11.48]
[1726212411484,14.8339,134.18,134.16,3.3543]
[1726212412089,14.8336,134.19,134.16,3.3543]
[1726212418389,11.48,134.19,134.17,3.354]
[1726212420691,14.8338,134.19,134.14,11.48]
[1726212420897,14.8338,134.19,134.16,3.3543]
[1726212421293,3.3538,134.19,134.16,3.3543]
[1726212421490,11.48,134.18,134.16,3.3543]
[1726212422394,11.48,134.17,134.14,3.3548]
[1726212422692,11.48,134.15,134.13,1.4256]
[1726212423587,11.48,134.15,134.14,3.3548]
[1726212426298,11.48,134.15,134.11,3.76780786]
[1726212426506,11.48,134.14,134.09,11.48]
[1726212427496,11.48,134.14,134.12,3.3551]
[1726212427700,11.48,134.15,134.11,3.63645607]
[1726212427898,2.7985,134.24,134.12,11.48]
[1726212428102,11.48,134.17,134.14,3.3546]
[1726212428298,11.48,134.17,134.13,11.48]
[1726212428901,11.48,134.17,134.14,3.3546]
[1726212429300,14.8341,134.17,134.14,3.3546]
[1726212429502,11.48,134.16,134.14,3.3546]
[1726212439815,3.3539,134.18,134.15,3.3544]
[1726212440011,11.48,134.17,134.15,3.3544]
[1726212442209,11.48,134.17,134.16,3.3543]
[1726212442610,11.48,134.18,134.16,3.3543]
[1726212447021,3.3534,134.2,134.15,11.48]
[1726212447212,11.48,134.2,134.16,11.48]
[1726212448117,11.48,134.2,134.18,3.3537]
[1726212461923,3.353,134.22,134.19,3.3536]
[1726212462122,2.7985,134.24,134.19,3.3536]
[1726212462322,11.48,134.21,134.19,3.3536]
[1726212462519,14.8331,134.21,134.19,3.3536]
[1726212463725,11.48,134.2,134.18,3.3538]
[1726212464740,14.8334,134.2,134.17,3.3539]
[1726212465231,3.3536,134.19,134.17,3.3539]
[1726212465529,3.3536,134.19,134.16,3.3542]
[1726212465831,14.8336,134.19,134.16,3.3542]
[1726212468622,3.3536,134.19,134.16,3.3542]
[1726212468820,11.48,134.19,134.17,3.3539]
[1726212469427,14.8336,134.19,134.16,3.3542]
[1726212482053,14.834,134.18,134.15,3.3545]
[1726212482555,14.834,134.18,134.16,3.3543]
[1726212482751,11.48,134.18,134.16,3.3543]
[1726212482948,3.3537,134.19,134.16,3.3543]
[1726212483249,14.8337,134.19,134.16,3.3543]
[1726212483548,2.7985,134.24,134.16,11.48]
[1726212483549,11.48,134.21,134.16,11.48]
[1726212484252,14.8333,134.21,134.18,3.3537]
[1726212484446,11.48,134.21,134.16,11.48]
[1726212485044,3.3533,134.2,134.17,3.3539]
[1726212485549,14.8332,134.21,134.18,3.3537]
[1726212485755,11.48,134.21,134.16,11.84462584]
[1726212485960,3.3527,134.23,134.19,3.3533]
[1726212486152,14.8327,134.23,134.19,3.3533]
[1726212486760,3.3527,134.23,134.2,3.3532]
[1726212486960,14.8327,134.23,134.2,3.3532]
[1726212488663,11.48,134.22,134.2,3.3532]
[1726212492162,14.8329,134.22,134.19,3.3535]
[1726212492964,11.48,134.22,134.2,3.3533]
[1726212493853,3.3527,134.23,134.2,3.3533]
[1726212494059,14.8327,134.23,134.2,3.3533]
[1726212494251,16.11153671,134.25,134.2,3.3533]
[1726212494457,16.11153671,134.28,134.2,11.48]
[1726212494662,1.14788057,134.27,134.21,15.28722428]
[1726212494866,14.8319,134.26,134.23,3.3524]
[1726212495455,14.8321,134.25,134.22,3.3527]
[1726212499055,3.3521,134.25,134.22,3.3527]
[1726212499267,14.8321,134.25,134.22,3.3527]
[1726212501163,3.3521,134.25,134.22,3.3527]
[1726212501666,14.8321,134.25,134.22,3.3527]
[1726212504171,3.3523,134.24,134.21,3.353]
[1726212507780,14.8323,134.24,134.21,3.353]
[1726212509176,14.8326,134.23,134.2,3.3532]
[1726212509379,11.48,134.22,134.18,1.3643]
[1726212509571,14.8329,134.22,134.19,3.3535]
[1726212512281,14.8327,134.23,134.2,3.3533]
[1726212512482,14.8327,134.23,134.18,12.8443]
[1726212512782,14.8327,134.23,134.18,16.60613376]
[1726212513777,3.3524,134.24,134.21,11.48]
[1726212514782,3.3524,134.24,134.21,14.833]
[1726212515585,3.3526,134.23,134.21,11.48]
[1726212515984,3.3532,134.21,134.18,7.11553376]
[1726212516180,16.1102097,134.28,134.18,3.3537]
[1726212516181,11.48,134.22,134.18,3.3537]
[1726212516384,11.48,134.22,134.17,1.4304]
[1726212517482,11.48,134.21,134.17,1.4304]
[1726212517684,11.48,134.21,134.17,12.9104]
[1726212518781,14.8331,134.21,134.18,3.3537]
[1726212519283,16.1102097,134.28,134.2,11.48]
[1726212519489,3.3527,134.23,134.2,14.8333]
[1726212519693,14.8327,134.23,134.2,14.8333]
[1726212520082,3.3527,134.23,134.2,14.8333]
[1726212521993,11.48,134.23,134.2,14.8333]
[1726212524091,14.8325,134.24,134.2,14.8333]
[1726212525188,14.8325,134.24,134.21,3.3531]
[1726212530182,3.3525,134.24,134.21,14.8331]
[1726212530387,14.832,134.26,134.22,11.48]
[1726212531089,14.832,134.26,134.22,14.8327]
[1726212531090,3.3521,134.25,134.22,14.8327]
[1726212534109,3.3519,134.26,134.23,3.3524]
[1726212538304,14.8319,134.26,134.23,3.3524]
[1726212538707,2.7233,134.29,134.19,1.3604]
[1726212538708,11.48,134.25,134.19,1.3604]
[1726212538904,11.48,134.25,134.2,11.48]
[1726212539508,3.3524,134.24,134.22,3.3528]
[1726212540313,11.48,134.25,134.22,3.3528]
[1726212540314,14.8322,134.25,134.22,3.3528]
[1726212540509,3.3522,134.25,134.22,3.3528]
[1726212543307,14.8322,134.25,134.22,3.3528]
[1726212543615,3.3522,134.25,134.22,3.3528]
[1726212543809,14.8322,134.25,134.22,3.3528]
[1726212544620,14.8322,134.25,134.23,3.3526]
[1726212545008,11.48,134.25,134.23,3.3526]
[1726212545211,14.8319,134.26,134.23,3.3526]
[1726212548718,3.3521,134.25,134.23,3.3526]
[1726212549116,3.3521,134.25,134.22,3.3527]
[1726212551914,14.8319,134.26,134.23,3.3525]
[1726212554313,3.3519,134.26,134.22,11.48]
[1726212555316,3.3519,134.26,134.23,3.3524]
[1726212556017,16.11031579,134.28,134.23,11.48]
[1726212556317,14.8314,134.28,134.25,3.3519]
[1726212557011,14.8314,134.28,134.25,14.8319]
[1726212557216,3.3514,134.28,134.25,14.8319]
[1726212557615,19.46171579,134.28,134.25,14.8319]
[1726212557819,3.3514,134.28,134.25,14.8319]
[1726212558522,3.3514,134.28,134.25,11.48]
[1726212559009,19.45936111,134.28,134.25,14.8321]
[1726212559207,3.3514,134.28,134.25,14.8321]
[1726212567913,3.3514,134.28,134.25,11.48]
[1726212568116,14.8314,134.28,134.25,11.48]
[1726212568310,11.48,134.28,134.25,11.48]
[1726212568707,3.74944332,134.32,134.25,14.832]
[1726212568708,27.58738306,134.29,134.25,14.832]
[1726212568911,11.48,134.29,134.25,14.832]
[1726212569813,3.3515,134.28,134.25,14.832]
[1726212571219,3.3516,134.27,134.25,11.48]
[1726212571628,3.3516,134.27,134.24,4.7131]
[1726212571827,3.3516,134.27,134.24,16.1931]
[1726212573928,11.48,134.27,134.19,1.3604]
[1726212574132,11.48,134.27,134.21,11.48]
[1726212574626,3.3522,134.25,134.22,3.3528]
[1726212575824,11.48,134.26,134.19,2.6678]
[1726212576135,11.48,134.24,134.2,11.48]
[1726212577025,3.3527,134.23,134.2,14.8332]
[1726212577224,11.48,134.26,134.21,11.48]
[1726212578931,11.48,134.26,134.21,14.833]
[1726212578932,3.3525,134.24,134.21,14.833]
[1726212579226,16.10997138,134.29,134.21,14.833]
[1726212579417,3.3523,134.25,134.21,14.833]
[1726212585047,3.3523,134.25,134.22,3.3528]
[1726212585225,3.3523,134.25,134.22,14.8328]
[1726212589446,3.3519,134.26,134.23,14.8325]
[1726212589745,11.48,134.28,134.23,11.48]
[1726212590042,3.3517,134.27,134.23,14.8324]
[1726212591044,3.352,134.26,134.23,3.3524]
[1726212591238,3.352,134.26,134.23,14.8324]
[1726212597848,3.3521,134.25,134.22,14.8327]
[1726212598149,3.3521,134.25,134.22,3.3527]
[1726212598350,3.3521,134.25,134.22,14.8327]
[1726212598749,3.3524,134.24,134.22,11.48]
[1726212600241,3.3522,134.25,134.22,14.8327]
[1726212601457,3.3522,134.25,134.23,11.48]
[1726212601648,16.10734531,134.29,134.23,14.8325]
[1726212601850,12.62768891,134.28,134.23,14.8325]
[1726212602067,11.48,134.28,134.23,14.8325]
[1726212602562,3.3517,134.27,134.23,14.8325]
[1726212602944,3.3519,134.26,134.23,14.8325]
[1726212606460,3.3522,134.25,134.22,3.3527]
[1726212606772,3.3522,134.25,134.22,14.8327]
[1726212608463,11.48,134.26,134.19,2.6678]
[1726212608662,11.48,134.26,134.21,11.48]
[1726212609160,27.58734531,134.26,134.21,11.48]
[1726212609358,3.3522,134.25,134.21,14.8329]
[1726212609658,3.3522,134.25,134.22,11.48]
[1726212610765,3.3522,134.25,134.22,14.8328]
[1726212611878,3.3524,134.24,134.22,11.48]
[1726212612372,3.3522,134.25,134.22,14.8328]
[1726212615669,3.3524,134.24,134.21,3.353]
[1726212615869,3.3524,134.24,134.21,14.833]
[1726212616063,16.10636085,134.29,134.22,11.48]
[1726212616269,11.48,134.27,134.22,11.48]
[1726212616970,3.352,134.26,134.23,3.3525]
[1726212618077,3.3521,134.25,134.22,3.3527]
[1726212618270,3.3521,134.25,134.22,14.8327]
[1726212621971,3.352,134.26,134.23,3.3526]
[1726212622170,11.48,134.27,134.22,11.48]
[1726212622378,63.39984125,134.37,134.19,2.6678]
[1726212622379,16.10636085,134.28,134.24,11.48]
[1726212622578,47.72844125,134.37,134.27,11.48]
[1726212622579,11.48,134.32,134.27,11.48]
[1726212622869,4.49821542,134.31,134.28,14.8313]
[1726212623068,3.3507,134.31,134.28,11.48]
[1726212623265,11.48,134.32,134.28,11.48]
[1726212623683,3.351,134.3,134.28,11.48]
[1726212624182,27.58636085,134.32,134.28,11.48]
[1726212624183,3.3511,134.29,134.28,11.48]
[1726212627380,3.3515,134.28,134.26,14.2061]
[1726212627572,3.6414012,134.33,134.25,12.8206]
[1726212627573,11.48,134.3,134.25,12.8206]
[1726212628083,3.3518,134.26,134.25,1.3406]
[1726212628283,11.48,134.27,134.23,11.48]
[1726212628477,11.48,134.26,134.22,12.8714]
[1726212629382,3.3521,134.25,134.22,12.8714]
[1726212630882,11.48,134.26,134.22,12.8714]
[1726212630883,3.3523,134.24,134.22,12.8714]
[1726212634398,11.48,134.25,134.21,1.3491]
[1726212634987,3.3528,134.22,134.21,1.3491]
[1726212635884,3.3526,134.23,134.21,1.3491]
[1726212640286,3.3526,134.23,134.21,12.8291]
[1726212644896,3.3524,134.24,134.21,16.1822]
[1726212645296,16.10897456,134.3,134.22,11.48]
[1726212645493,11.48,134.27,134.22,11.48]
[1726212645689,11.48,134.27,134.21,12.8291]
[1726212645886,2.7428,134.31,134.21,1.3491]
[1726212645887,3.3528,134.22,134.21,1.3491]
[1726212646599,2.7428,134.31,134.21,12.8291]
[1726212646600,3.3525,134.24,134.21,12.8291]
[1726212647096,3.3528,134.23,134.21,1.3491]
[1726212649094,11.48,134.23,134.18,168.28995207]
[1726212649393,11.48,134.2,134.18,168.28995207]
[1726212649785,3.3538,134.19,134.17,1.4256]
[1726212652191,3.3538,134.18,134.16,1.89834606]
[1726212652394,11.48,134.19,134.16,1.89834606]
[1726212652901,3.3538,134.18,134.16,1.89834606]
[1726212663608,3.3541,134.17,134.16,1.89834606]
[1726212663805,14.8341,134.17,134.16,1.89834606]
[1726212665224,3.3541,134.17,134.16,1.89834606]
[1726212667025,14.8341,134.17,134.16,1.89834606]
[1726212669428,3.3546,134.15,134.14,1.87615922]
[1726212669630,14.8346,134.15,134.14,1.87615922]
[1726212673736,3.3546,134.15,134.14,1.87615922]
[1726212674044,3.3545,134.16,134.14,1.87615922]
[1726212676029,2.7717,134.2,134.14,1.87615922]
[1726212676030,14.8346,134.15,134.14,1.87615922]
[1726212677041,3.3546,134.15,134.14,1.87615922]
[1726212677331,14.8344,134.16,134.14,1.87615922]
[1726212677533,11.48,134.16,134.14,1.87615922]
[1726212678534,14.8344,134.16,134.14,1.87615922]
[1726212679738,14.8344,134.16,134.14,1.85615922]
[1726212681341,3.3546,134.15,134.14,1.85615922]
[1726212681835,14.8346,134.15,134.14,1.85615922]
[1726212690938,3.3548,134.14,134.13,2.04629266]
[1726212691139,11.48,134.14,134.11,1.70053492]
[1726212691446,11.48,134.12,134.11,1.70053492]
[1726212691948,14.8353,134.12,134.11,1.70053492]
[1726212692246,3.3553,134.12,134.11,1.70053492]
[1726212692447,14.8353,134.12,134.11,1.70053492]
[1726212694448,14.8353,134.12,134.11,1.66053492]
[1726212695536,3.3556,134.11,134.1,2.03439825]
[1726212695847,14.8356,134.11,134.1,2.03439825]
[1726212698547,7.78902486,134.24,134.1,2.03439825]
[1726212698548,3.3552,134.13,134.1,2.03439825]
[1726212698846,11.48,134.13,134.1,2.03439825]
[1726212699055,3.3555,134.12,134.1,2.03439825]
[1726212700836,14.8355,134.12,134.1,2.03439825]
[1726212709850,14.8356,134.11,134.1,2.03439825]
[1726212716957,3.3556,134.11,134.1,2.03439825]
[1726212717252,14.8356,134.11,134.1,2.03439825]
[1726212723064,3.3561,134.09,134.08,2.40486795]
[1726212723262,14.8361,134.09,134.08,2.40486795]
[1726212728679,3.3561,134.09,134.08,2.40486795]
[1726212728887,14.8361,134.09,134.08,2.40486795]
[1726212747491,3.3563,134.08,134.07,2.38961869]
[1726212747790,11.48,134.08,134.05,2.81515275]
[1726212747996,2.7465,134.15,134.05,2.81515275]
[1726212747997,14.8368,134.06,134.05,2.81515275]
[1726212756900,3.3568,134.06,134.05,2.81515275]
[1726212757115,14.8368,134.06,134.05,2.81515275]
[1726212775421,2.7465,134.15,134.05,2.81515275]
[1726212775717,11.48,134.06,134.05,2.81515275]
[1726212776012,1.14930034,134.14,134.05,2.81515275]
[1726212776013,18.87187788,134.15,134.05,14.29515275]
[1726212776205,11.48,134.09,134.06,3.70147491]
[1726212776616,11.48,134.09,134.07,1.3102]
[1726212777610,11.48,134.08,134.07,1.3102]
[1726212777810,11.48,134.08,134.05,2.81515275]
[1726212778011,11.48,134.06,134.05,2.81515275]
[1726212778518,11.48,134.07,134.05,2.81515275]
[1726212780621,14.8366,134.07,134.05,2.81515275]
[1726212783617,14.8368,134.06,134.05,2.81515275]
[1726212786715,11.48,134.06,134.05,2.81515275]
[1726212787327,14.8368,134.06,134.05,2.81515275]
[1726212788527,2.7465,134.15,134.05,2.81515275]
[1726212788728,11.48,134.08,134.05,2.81515275]
[1726212789127,11.48,134.08,134.05,6.17205275]
[1726212791021,14.8362,134.09,134.06,3.3568]
[1726212791222,14.8362,134.09,134.05,2.81515275]
[1726212791425,14.8363,134.08,134.05,2.81515275]
[1726212793837,14.8363,134.08,134.05,6.17215275]
[1726212796840,14.8361,134.09,134.06,3.3567]
[1726212797231,3.3561,134.09,134.06,3.3567]
[1726212797431,14.8361,134.09,134.06,3.3567]
[1726212798240,14.8364,134.08,134.05,6.17215275]
[1726212798438,11.48,134.07,134.05,2.81515275]
[1726212799247,2.7465,134.15,134.05,2.81515275]
[1726212799248,14.8368,134.06,134.05,2.81515275]
[1726212810162,11.48,134.06,134.05,2.81515275]
[1726212810457,11.48,134.07,134.05,2.81515275]
[1726212810962,11.48,134.08,134.05,2.81515275]
[1726212811358,11.48,134.08,134.05,6.17215275]
[1726212811861,14.8364,134.08,134.05,2.81515275]
[1726212814663,11.48,134.07,134.05,2.81515275]
[1726212815661,14.8367,134.07,134.05,2.81515275]
[1726212815862,11.48,134.06,134.05,2.81515275]
[1726212816568,14.8368,134.06,134.05,2.81515275]
[1726212818572,3.3571,134.05,134.04,2.44502527]
[1726212818763,14.8371,134.05,134.04,2.44502527]
[1726212820368,11.48,134.05,134.04,2.44502527]
[1726212822979,14.8371,134.05,134.04,2.44502527]
[1726212825077,3.3569,134.06,134.04,2.44502527]
[1726212825277,11.48,134.05,134.04,2.44502527]
[1726212827571,14.8371,134.05,134.04,2.44502527]
[1726212840783,3.3571,134.05,134.04,2.44502527]
[1726212840985,14.8371,134.05,134.04,2.44502527]
[1726212842288,2.7335,134.08,134.04,2.44502527]
[1726212842585,11.48,134.05,134.04,2.44502527]
[1726212844279,29.0792,134.16,134.04,5.80232527]
[1726212844590,11.48,134.07,134.04,5.80232527]
[1726212844989,11.48,134.07,134.04,2.44502527]
[1726212845486,14.8366,134.07,134.04,2.44502527]
[1726212845885,11.48,134.06,134.04,2.44502527]
[1726212846894,3.3566,134.07,134.04,5.80232527]
[1726212847087,14.8366,134.07,134.04,5.80232527]
[1726212851085,11.48,134.06,134.04,5.80232527]
[1726212856996,14.8369,134.06,134.04,5.80232527]
[1726212857697,11.48,134.06,134.04,5.80232527]
[1726212860903,3.3562,134.09,134.05,11.48]
[1726212861393,14.8362,134.09,134.05,11.48]
[1726212861997,14.8362,134.09,134.06,3.3566]
[1726212862396,11.48,134.07,134.05,3.357]
[1726212863098,14.8364,134.08,134.06,3.3568]
[1726212864000,11.48,134.08,134.06,3.3568]
[1726212865110,14.8364,134.08,134.06,3.3568]
[1726212865311,11.48,134.07,134.05,3.357]
[1726212867011,14.8366,134.07,134.04,5.80222527]
[1726212867213,14.8366,134.07,134.04,2.44502527]
[1726212867407,3.3568,134.06,134.04,5.80222527]
[1726212868507,11.48,134.07,134.04,5.80222527]
[1726212868711,14.8367,134.07,134.04,5.80222527]
[1726212869511,11.48,134.07,134.05,3.357]
[1726212870714,14.8366,134.07,134.05,3.357]
[1726212870908,14.8366,134.07,134.04,5.80232527]
[1726212872809,3.3569,134.06,134.04,2.44502527]
[1726212873202,14.8369,134.06,134.04,2.44502527]
[1726212874114,3.3571,134.05,134.04,2.44502527]
[1726212874307,14.8371,134.05,134.04,2.44502527]
[1726212875211,14.8369,134.06,134.04,2.44502527]
[1726212879822,16.12416944,134.14,134.04,2.44502527]
[1726212879823,14.8371,134.05,134.04,2.44502527]
[1726212880819,11.48,134.05,134.04,2.44502527]
[1726212881714,14.8371,134.05,134.04,2.44502527]
[1726212885221,3.3573,134.04,134.03,0.31963173]
[1726212885424,14.8373,134.04,134.03,0.31963173]
[1726212887018,11.48,134.04,134.03,0.31963173]
[1726212887925,14.8373,134.04,134.03,0.31963173]
[1726212893249,3.3576,134.03,134.02,2.09276768]
[1726212893435,14.8376,134.03,134.02,2.09276768]
[1726212894137,3.3578,134.02,134.01,2.54928466]
[1726212894342,14.8378,134.02,134.01,2.54928466]
[1726212903841,3.3578,134.02,134.01,2.54928466]
[1726212904046,14.8378,134.02,134.01,2.54928466]
[1726212909453,14.8378,134.02,134.0,0.56317748]
[1726212909454,3.3581,134.01,134.0,0.56317748]
[1726212909746,14.8381,134.01,134.0,0.56317748]
[1726212910550,14.8383,134.0,133.99,3.3736809]
[1726212914240,3.3583,134.0,133.99,3.3736809]
[1726212914446,14.8383,134.0,133.99,3.3736809]
[1726212921458,14.8383,134.0,133.98,2.56259037]
[1726212921459,3.3586,133.99,133.98,2.56259037]
[1726212921658,14.8386,133.99,133.98,2.56259037]
[1726212921848,14.8386,133.99,133.96,2.56741895]
[1726212921849,3.3591,133.97,133.96,2.56741895]
[1726212922046,3.3591,133.97,133.95,3.37345505]
[1726212922047,11.48,133.97,133.95,3.37345505]
[1726212922351,11.48,133.96,133.94,0.60371418]
[1726212922553,14.8396,133.95,133.94,0.60371418]
[1726212926048,14.8398,133.94,133.93,2.8017016]